[Event "FIDE Womens Candidates 2024"]
[Site "Toronto"]
[Date "2024.04.17"]
[Round "11.3"]
[White "Koneru, Humpy"]
[Black "Salimova, Nurgyul"]
[Result "1-0"]
[ECO "D12"]
[WhiteElo "2546"]
[BlackElo "2432"]
[Annotator "TA"]
[PlyCount "179"]
[EventDate "2024.04.02"]
[EventType "tourn"]
[EventCountry "CAN"]
[SourceTitle "playchess.com"]
[Source "ChessBase"]
[SourceQuality "1"]
[TimeControl "40/5400+30:1800+30"]

{[%evp 13,179,20,24,16,16,9,3,0,31,34,37,31,33,27,22,28,30,30,34,37,33,31,28,43,51,30,65,31,89,91,92,65,73,71,77,70,75,68,80,79,106,105,117,114,218,145,131,145,236,233,233,244,337,247,429,443,437,436,517,516,505,482,433,333,383,316,282,129,170,175,188,190,192,179,186,187,237,173,860,533,828,791,706,577,585,588,534,205,197,217,187,179,193,184,353,341,29980,370,423,423,470,486,480,422,508,508,535,422,487,472,765,636,741,793,804,717,741,844,717,717,941,987,580,564,1011,810,774,602,979,506,799,468,1070,523,566,347,340,340,760,691,902,997,2335,1747,1248,1118,3097,4134,2610,2562,1358,1258,29970,29970,29973,29975,29979,29980,29980,29981,29983,29984,29984,29985,29987,29988,29988,29989]} 1. d4 {[%emt 0:00:05]} d5 {[%emt 0:00:11]} 2. c4 {[%emt 0:00:14]} c6 {[%emt 0:00:05]} 3. Nf3 {[%emt 0:00:22]} Nf6 {[%emt 0:00:31]} 4. e3 {[%emt 0:00:22]} Bf5 {[%emt 0:02:50]} 5. Nc3 {[%emt 0:00:30]} e6 {[%emt 0:00:19]} 6. Nh4 {[%emt 0:00:37]} Bg6 {[%emt 0:00:14]} 7. Nxg6 {[%emt 0:00:27]} hxg6 {[%emt 0:00:05]} 8. Bd2 {[%emt 0:00:59]} Nbd7 {[%emt 0:02:18]} 9. cxd5 {[%emt 0:01:25]} exd5 {[%emt 0:01:51]} 10. Qc2 {[%emt 0:00:41] The position is equal.} Qc7 {[%emt 0:07:11]} 11. h3 {[%emt 0:10:01]} Be7 {[%emt 0:06:18]} 12. O-O-O {[%emt 0:04:35]} O-O-O {[%emt 0:07:59]} 13. Be2 {[%emt 0:07:10]} Kb8 {[%emt 0:04:25]} 14. Kb1 {[%emt 0:00:08]} Rc8 {[%emt 0:10:19]} 15. g4 {[%emt 0:04:58]} g5 {[%emt 0:08:26]} 16. Qf5 {[%emt 0:25:02]} Nb6 {[%emt 0:09:53]} 17. Qxg5 {[%emt 0:06:35]} Ne4 {[%emt 0:01:27]} 18. Qf5 {[%emt 0:00:08]} (18. Qxg7 $2 Bf6 $19 (18... Nxf2 19. Qxf7 Rcf8 20. Qg7 $15) (18... Nxf2 19. Qxf7 Rcf8 20. Qg7 $15)) 18... g6 {[%emt 0:07:54]} 19. Qf3 {[%emt 0:00:36]} (19. Qxf7 Rcf8 20. Qxg6 Nxf2 $15) 19... f5 {[%emt 0:02:24]} 20. Qg2 {[%emt 0:11:01]} (20. gxf5 gxf5 21. Be1 (21. Qxf5 $2 Rcf8 $19) 21... a6 $11) 20... Rcf8 {[%emt 0:02:38]} (20... Nxd2+ $14 21. Rxd2 f4) 21. Nxe4 $16 {[%emt 0:05:38]} fxe4 {[%emt 0:00:15]} 22. Rdf1 {[%emt 0:00:40]} g5 {[%emt 0:15:47]} 23. f3 {[%emt 0:00:23]} exf3 {[%emt 0:00:05]} 24. Rxf3 {[%emt 0:00:12]} Rxf3 {[%emt 0:00:06]} 25. Qxf3 {[%emt 0:00:09]} Rf8 {[%emt 0:00:05]} 26. Qg2 {[%emt 0:00:16]} Bd6 {[%emt 0:00:35]} 27. Bd3 {[%emt 0:02:35] Against Qh7} Nc4 {[%emt 0:01:03]} 28. Bc1 {[%emt 0:01:40]} Re8 {[%emt 0:02:12]} (28... Qe7 $16) 29. e4 {[%emt 0:06:44]} Bf4 {[%emt 0:01:02]} 30. e5 {[%emt 0:01:20]} Qb6 {[%emt 0:01:57]} (30... Bxc1 $16 31. Rxc1 Qa5 32. Bxc4 dxc4) 31. Bxf4 $18 {[%emt 0:02:11]} gxf4 {[%emt 0:00:07]} 32. Qf2 {[%emt 0:01:43]} Rd8 {[%emt 0:02:08]} 33. Rc1 {[%emt 0:01:26]} (33. Qxf4 $2 Qxb2#) 33... Qb4 $2 {[%emt 0:03:06]} (33... Rf8 34. e6 (34. Bxc4 dxc4 35. e6 Qb4 $18) 34... Qb4 35. Bxc4 dxc4) 34. Bxc4 {[%emt 0:04:44]} (34. Qxf4 $2 Qxb2#) 34... dxc4 {[%emt 0:00:04]} 35. Qxf4 {[%emt 0:01:05][%mdl 4096] Endgame. KQR-KQR} c3 {[%emt 0:00:06][%csl Gc3][%cal Rb4b2]} 36. e6+ {[%emt 0:00:10]} Kc8 {[%emt 0:00:20][%csl Gc3][%cal Rb4b2]} 37. Rxc3 {[%emt 0:00:31]} Rxd4 {[%emt 0:00:47]} 38. Qf5 {[%emt 0:00:25]} Rd1+ {[%emt 0:00:46]} 39. Kc2 {[%emt 0:00:13]} Re1 {[%emt 0:00:09]} 40. Qd3 {[%emt 0:00:00]} (40. e7+ Kc7 $11) (40. a3 $18 Qa4+ 41. b3 Qxa3 42. Kd2 (42. e7+ Kc7 $16) 42... Qb2+ 43. Kxe1 Qxc3+ 44. Ke2 Qb2+ 45. Kf1 Qc1+ 46. Ke2 Qb2+ 47. Kf3 Qc3+ 48. Ke2 Qb2+) 40... Qa4+ {[%emt 0:00:00]} 41. Rb3 {[%emt 0:02:34]} Rxe6 {[%emt 0:01:03]} 42. Qf5 $36 {[%emt 0:04:17][%mdl 2048] Dodges Qf4. Black is under strong pressure.} Qc4+ {[%emt 0:04:40]} 43. Rc3 {[%emt 0:00:54]} Qe2+ {[%emt 0:01:53]} 44. Kb1 {[%emt 0:00:29]} a5 {[%emt 0:04:48]} (44... Qe4+ $142 45. Qxe4 Rxe4) 45. a3 {[%emt 0:10:38][%cal Og4g5]} ({Not} 45. Qxa5 Qe1+ 46. Kc2 Re2+ 47. Kb3 Qd2 48. Qf5+ Kb8 $11) 45... a4 $2 {[%emt 0:01:43]} (45... Qe4+ 46. Qxe4 Rxe4) 46. g5 {[%emt 0:03:52][%cal Bg4g5,Bg5g6][%mdl 32]} Kc7 {[%emt 0:07:35]} 47. g6 {[%emt 0:01:23] Threatens to win with g7.} Re5 {[%emt 0:08:24]} 48. Qf7+ {[%emt 0:01:51]} Kb6 {[%emt 0:00:24]} 49. Qc4 {[%emt 0:06:37] Wards off Rb5} Qf2 {[%emt 0:00:39]} 50. Qxa4 $2 {[%emt 0:02:24]} (50. Ka2 {[%cal Og6g7] g7! would now be deadly.} Rg5 51. Qxa4) 50... Rb5 {[%emt 0:02:51]} 51. Qc2 {[%emt 0:00:07]} Qe1+ {[%emt 0:00:35]} 52. Ka2 {[%emt 0:00:16] And now Rb3 would win.} Qe6+ {[%emt 0:00:12]} 53. Ka1 $1 {[%emt 0:00:45]} Qe1+ {[%emt 0:01:17]} (53... Rg5 {was called for.} 54. Qb3+ Qxb3 55. Rxb3+ Kc7) 54. Qb1 {[%emt 0:01:16]} (54. Qc1 Qxc1+ 55. Rxc1 Rg5 $11) 54... Qxb1+ {[%emt 0:00:40]} 55. Kxb1 {[%emt 0:00:02] Threatening mate with Rg3. KR-KR} Rg5 {[%emt 0:00:05]} 56. h4 {[%emt 0:00:45]} (56. Rb3+ Kc7 57. h4 Rxg6 $11) 56... Rxg6 {[%emt 0:00:04]} 57. h5 {[%emt 0:00:39]} Rh6 {[%emt 0:00:21]} 58. Rh3 {[%emt 0:00:08]} Kc5 {[%emt 0:00:11]} 59. Kc2 {[%emt 0:00:15]} Kd5 {[%emt 0:01:30]} 60. Kc3 {[%emt 0:00:29]} Kc5 {[%emt 0:01:39]} 61. Rh1 {[%emt 0:02:01]} b6 {[%emt 0:01:26]} (61... Kd5 $142 62. Rh4 b5) 62. Rh3 {[%emt 0:00:35]} Kd5 {[%emt 0:00:19]} 63. a4 {[%emt 0:00:30]} Kc5 {[%emt 0:01:06]} 64. Kb3 {[%emt 0:00:23]} Kd5 {[%emt 0:00:35]} 65. Kb4 {[%emt 0:00:11]} Kd4 {[%emt 0:00:20]} 66. b3 {[%emt 0:01:17]} Kd5 {[%emt 0:00:26]} 67. Rh4 {[%emt 0:00:12]} Ke5 {[%emt 0:00:38]} 68. Kc4 {[%emt 0:00:02]} Kd6 {[%emt 0:00:34]} 69. Rh1 {[%emt 0:00:43]} Ke5 {[%emt 0:00:21]} 70. Rh2 {[%emt 0:01:00]} Kd6 {[%emt 0:00:08]} 71. Kd4 {[%emt 0:00:20] Black must now prevent b4.} Ke6 {[%emt 0:00:21]} (71... c5+ $142 72. Kc4 Kc6) 72. Ke4 {[%emt 0:00:17]} Kf6 {[%emt 0:00:35]} (72... c5 $142 73. Rh3 Kf6) 73. Kf4 {[%emt 0:00:43]} (73. b4 $142 {Hoping for a5.} Ke7 74. Kf4) 73... Kf7 {[%emt 0:00:41]} 74. Ke5 {[%emt 0:00:54]} Re6+ {[%emt 0:00:14]} 75. Kd4 {[%emt 0:00:06]} Rh6 $2 {[%emt 0:00:32]} (75... c5+ 76. Kd3 Kg8) 76. b4 {[%emt 0:00:39][%cal Bb3b4,Bb4a5][%mdl 32] aiming for a5.} Ke6 {[%emt 0:00:22]} 77. a5 {[%emt 0:00:28]} bxa5 {[%emt 0:00:22]} 78. bxa5 {[%emt 0:00:02]} Kd6 {[%emt 0:00:25]} 79. Ke4 {[%emt 0:00:12]} Kc5 {[%emt 0:01:11]} 80. Kf5 {[%emt 0:00:08] White wants to mate with Kg5.} Kb5 {[%emt 0:00:10] [#]} 81. Kg5 $1 {[%emt 0:00:10]} Rh8 {[%emt 0:00:05] [#]} 82. Ra2 $1 {[%emt 0:00:09] Intending a6 and mate.} Rg8+ {[%emt 0:00:40]} 83. Kf6 {[%emt 0:00:07] White mates.} Ka6 {[%emt 0:00:55]} 84. h6 {[%emt 0:00:11]} c5 {[%emt 0:00:54][%cal Bc6c5,Bc5c4,Bc4c3][%mdl 32]} 85. h7 {[%emt 0:00:19]} Rc8 {[%emt 0:00:30]} 86. Rh2 {[%emt 0:00:32]} Kxa5 {[%emt 0:00:30]} 87. h8=Q {[%emt 0:00:15]} Rxh8 {[%emt 0:00:05]} 88. Rxh8 {[%emt 0:00:05]} c4 {[%emt 0:00:21]} 89. Ke5 {[%emt 0:00:06]} c3 {[%emt 0:00:18]} 90. Kd4 {[%emt 0:00:16] Weighted Error Value: White=0.36/Black=0.31.  Mistake:       	White=2     	Black=10     Inaccurate:     	White=3     	Black=5      OK:         	White=27    	Black=16     Best:        	White=9     	Black=6} 1-0

[Event "FIDE Womens Candidates 2024"]
[Site "Toronto"]
[Date "2024.04.20"]
[Round "13.4"]
[White "Koneru, Humpy"]
[Black "Muzychuk, Anna"]
[Result "1/2-1/2"]
[ECO "D30"]
[WhiteElo "2546"]
[BlackElo "2520"]
[Annotator "TA"]
[PlyCount "90"]
[EventDate "2024.04.02"]
[EventType "tourn"]
[EventCountry "CAN"]
[SourceTitle "playchess.com"]
[Source "ChessBase"]
[SourceQuality "1"]
[TimeControl "40/5400+30:1800+30"]

{[%evp 9,90,-14,-2,4,0,-12,-8,-8,-14,-12,-4,-33,-10,-22,-28,-25,-20,-28,-26,-21,-10,-16,-20,-17,-20,-16,-24,-24,-18,-31,-32,-38,0,-29,-44,-38,0,-36,-41,-59,-62,-68,0,0,0,0,0,0,0,0,0,0,0,0,0,0,0,0,0,0,0,0,0,0,0,0,0,0,0,0,0,0,0,0,0,0,0,0,0,0,0,0,0]} 1. d4 {[%emt 0:00:06]} d5 {[%emt 0:00:06]} 2. c4 {[%emt 0:00:19]} e6 {[%emt 0:00:07]} 3. Nf3 {[%emt 0:00:35]} Nf6 {[%emt 0:00:08]} 4. Qc2 {[%emt 0:00:24]} dxc4 {[%emt 0:02:12]} 5. Qxc4 {[%emt 0:00:28]} a6 {[%emt 0:02:13]} 6. Bf4 {[%emt 0:00:40]} Bd6 {[%emt 0:01:30]} 7. Bg3 {[%emt 0:00:16]} b5 {[%emt 0:03:24]} 8. Qc2 {[%emt 0:01:57]} Bb7 {[%emt 0:01:24]} 9. Nbd2 {[%emt 0:00:23]} Nbd7 {[%emt 0:07:39]} 10. a3 {[%emt 0:02:38]} Qe7 {[%emt 0:05:21]} 11. e3 {[%emt 0:04:58]} c5 {[%emt 0:08:21]} 12. Bxd6 {[%emt 0:12:27]} Qxd6 {[%emt 0:00:01]} 13. dxc5 {[%emt 0:03:22]} Nxc5 {[%emt 0:07:44]} 14. Rd1 {[%emt 0:10:18]} Qb6 {[%emt 0:02:55]} 15. b4 {[%emt 0:08:33]} Nce4 {[%emt 0:06:10]} 16. Nxe4 {[%emt 0:02:01]} Bxe4 {[%emt 0:00:54]} 17. Bd3 {[%emt 0:00:28]} Bxf3 {[%emt 0:04:42]} 18. gxf3 {[%emt 0:00:15]} Ke7 {[%emt 0:00:50]} 19. O-O {[%emt 0:22:19]} Rac8 {[%emt 0:01:44]} 20. Qb2 {[%emt 0:00:40]} Rhd8 {[%emt 0:00:23]} 21. Be4 {[%emt 0:04:22] Dodges Qc6} Nxe4 {[%emt 0:09:30]} 22. fxe4 {[%emt 0:00:12]} f6 {[%emt 0:04:30]} (22... g6 {is more complex.} 23. h3 h5 24. Qe5 Qc7) 23. Rxd8 {[%emt 0:02:51]} Qxd8 $11 {[%emt 0:00:28][%mdl 4096] Endgame. KQR-KQR} 24. Rc1 {[%emt 0:00:40]} Rc4 $1 {[%emt 0:01:36]} 25. Rxc4 $1 {[%emt 0:04:41]} Qd1+ {[%emt 0:00:44]} ({Black should try} 25... bxc4 $15 26. Qc2 Qc7) 26. Kg2 {[%emt 0:00:06] The position is equal.} bxc4 {[%emt 0:00:24] KQ-KQ} 27. b5 $1 {[%emt 0:00:24]} Qg4+ {[%emt 0:01:35]} 28. Kf1 {[%emt 0:00:50]} Qd1+ {[%emt 0:00:05]} 29. Kg2 {[%emt 0:00:04]} axb5 {[%emt 0:02:03]} 30. Qxb5 {[%emt 0:00:25]} Qg4+ {[%emt 0:03:54]} 31. Kf1 {[%emt 0:00:08]} Qd1+ {[%emt 0:00:12]} 32. Kg2 {[%emt 0:00:04]} Qg4+ {[%emt 0:00:31]} 33. Kf1 {[%emt 0:00:05]} Qxe4 {[%emt 0:00:13]} 34. Qc5+ $1 {[%emt 0:06:34]} Kf7 {[%emt 0:13:29]} 35. Qc7+ {[%emt 0:01:07]} Kg6 {[%emt 0:00:07]} 36. Qg3+ $1 {[%emt 0:00:30]} Kf7 {[%emt 0:00:11]} 37. Qc7+ {[%emt 0:00:06]} Kg6 {[%emt 0:00:05]} 38. Qg3+ $1 {[%emt 0:00:06]} Kf5 {[%emt 0:10:24]} 39. Qh3+ {[%emt 0:01:10]} Ke5 {[%emt 0:00:57]} (39... Kg5 $5 40. Qg3+ $8 Kh5 41. Qxg7 Qb1+ 42. Ke2 Qf5 $11) 40. Qg3+ {[%emt 0:00:00]} Kd5 {[%emt 0:00:00] [#] And now ...c3 would win.} 41. Qxg7 {[%emt 0:01:03] Hoping for Qb7+.} Qb1+ {[%emt 0:07:01]} 42. Ke2 {[%emt 0:03:38] aiming for Qd7+.} Qd3+ {[%emt 0:03:05]} 43. Ke1 {[%emt 0:02:50] Black must now prevent Qd7+.} Qxa3 {[%emt 0:02:24] Threatens to win with ...Qc3+.} 44. Qb7+ {[%emt 0:01:09]} Kd6 {[%emt 0:00:58] [#] Strongly threatening ...Qc3+.} 45. Qb6+ {[%emt 0:00:18]} Kd7 {[%emt 0:00:48] Weighted Error Value: White=0.05 (flawless) /Black=0.05 (flawless) .  Mistake:       	---       	Black=1      Inaccurate:     	White=3     	Black=2      OK:         	White=13    	Black=19     Best:        	White=6     	---        Strong:       	White=5     	Black=1} 1/2-1/2